fUSD/lending_fUSD_20241122
["ID","MTS","AMOUNT","RATE_DAILY","PERIOD"]
[343006653,1732272639780,-500.0,0.00090136,120]
[343006654,1732272639790,-501.05292729,0.00090136,120]
[343006655,1732272639800,-507.49555484,0.00090136,120]
[343006656,1732272639809,-502.22320956,0.00090136,120]
[343006657,1732272639818,-500.0,0.00090136,120]
[343006659,1732272639827,-500.0,0.00090136,120]
[343006660,1732272639840,-500.0,0.00090136,20]
[343006661,1732272639849,-500.0,0.00090136,120]
[343006662,1732272639859,-505.75065644,0.00090136,120]
[343006663,1732272639868,-501.07358628,0.00090136,120]
[343006664,1732272639878,-500.0,0.00090136,120]
[343006665,1732272639888,-508.89497578,0.00090136,120]
[343006666,1732272639897,-500.0,0.00090136,120]
[343006667,1732272639907,-500.69449392,0.00090136,120]
[343006668,1732272639917,-500.0,0.00090136,120]
[343006669,1732272639926,-503.28853062,0.00090136,120]
[343006670,1732272639935,-500.0,0.00090136,120]
[343006671,1732272639945,-500.0,0.00090136,120]
[343006672,1732272639954,-502.517801,0.00090136,120]
[343006673,1732272639963,-500.0,0.00090136,120]
[343006674,1732272639973,-500.0,0.00090136,120]
[343006675,1732272639982,-500.0,0.00090136,120]
[343006676,1732272639991,-500.0,0.00090136,120]
[343006677,1732272640000,-501.11416506,0.00090136,120]
[343006678,1732272640009,-505.64580654,0.00090136,60]
[343006679,1732272640019,-500.0,0.00090136,120]
[343006680,1732272640028,-500.0,0.00090136,120]
[343006681,1732272640038,-527.89747945,0.00090136,120]
[343006682,1732272640047,-501.83932195,0.00090136,120]
[343006683,1732272640056,-500.0,0.00090136,120]
[343006684,1732272640065,-500.0,0.00090136,120]
[343006685,1732272640074,-501.82653575,0.00090136,120]
[343006686,1732272640083,-502.69524021,0.00090136,120]
[343006687,1732272640092,-501.18534414,0.00090136,120]
[343006688,1732272640102,-500.0,0.00090136,120]
[343006689,1732272640111,-168.0,0.00090136,120]
[343006690,1732272640120,-500.0,0.00090136,120]
[343006691,1732272640131,-503.12044767,0.00090136,120]
[343006692,1732272640140,-500.0,0.00090136,120]
[343006693,1732272640153,-501.75959545,0.00090136,120]
[343006694,1732272640163,-500.0,0.00090136,120]
[343006695,1732272640172,-500.0,0.00090136,120]
[343006696,1732272640181,-500.0,0.00090136,120]
[343006697,1732272640190,-500.0,0.00090136,120]
[343006698,1732272640199,-500.0,0.00090136,7]
[343006699,1732272640209,-630.09264137,0.00090136,120]
[343006700,1732272640218,-500.61728173,0.00090136,120]
[343006701,1732272640227,-500.0,0.00090136,120]
[343006702,1732272640237,-500.0,0.00090136,120]
[343006703,1732272640246,-543.78733772,0.00090136,120]
[343006704,1732272640255,-1000.0,0.00090136,5]
[343006705,1732272640264,-501.81917128,0.00090136,120]
[343006706,1732272640273,-545.57177968,0.00090136,120]
[343006707,1732272640282,-500.0,0.00090136,120]
[343006708,1732272640291,-500.0,0.00090136,120]
[343006709,1732272640300,-502.24905371,0.00090136,120]
[343006710,1732272640309,-500.0,0.00090136,120]
[343006711,1732272640319,-499.1519189,0.00090136,120]
[343006712,1732272640328,-504.60828363,0.00090136,120]
[343006713,1732272640337,-631.59646622,0.00090136,120]
[343006714,1732272640347,-500.0,0.00090136,120]
[343006715,1732272640356,-503.3536924,0.00090136,120]
[343006716,1732272640365,-500.0,0.00090136,120]
[343006717,1732272640374,-517.36681888,0.00090136,120]
[343006718,1732272640385,-502.69332394,0.00090136,120]
[343006719,1732272640395,-500.0,0.00090136,120]
[343006720,1732272640404,-500.0,0.00090136,120]
[343006721,1732272640413,-500.0,0.00090136,120]
[343006722,1732272640422,-503.2325263,0.00090136,120]
[343006723,1732272640432,-500.0,0.00090136,120]
[343006724,1732272640441,-500.0,0.00090136,120]
[343006725,1732272640450,-502.13327748,0.00090136,120]
[343006726,1732272640459,-500.0,0.00090136,60]
[343006727,1732272640468,-1170.74835936,0.00090136,30]
[343006728,1732272640477,-500.89870052,0.00090136,120]
[343006729,1732272640486,-500.0,0.00090136,120]
[343006730,1732272640496,-503.15451561,0.00090136,120]
[343006731,1732272640505,-504.81166256,0.00090136,120]
[343006732,1732272640514,-501.43839066,0.00090136,120]
[343006733,1732272640523,-500.0,0.00090136,120]
[343006734,1732272640532,-500.0,0.00090136,120]
[343006735,1732272640552,-501.70200133,0.00090136,120]
[343006736,1732272640563,-501.12383111,0.00090136,120]
[343006737,1732272640572,-501.31733292,0.00090136,120]
[343006738,1732272640582,-500.0,0.00090136,120]
[343006739,1732272640592,-500.0,0.00090136,120]
[343006740,1732272640601,-530.75216793,0.00090136,120]
[343006741,1732272640611,-500.0,0.00090136,120]
[343006742,1732272640620,-500.0,0.00090136,120]
[343006743,1732272640629,-500.0,0.00090136,120]
[343006744,1732272640640,-539.94166958,0.00090136,120]
[343006745,1732272640649,-543.54485724,0.00090136,120]
[343006746,1732272640659,-500.0,0.00090136,120]
[343006747,1732272640668,-500.0,0.00090136,120]
[343006748,1732272640678,-501.70941096,0.00090136,120]
[343006749,1732272640687,-500.0,0.00090136,120]
[343006750,1732272640697,-500.0,0.00090136,120]
[343006751,1732272640706,-500.0,0.00090136,120]
[343006752,1732272640715,-502.23185227,0.00090136,120]
[343006753,1732272640724,-529.55273255,0.00090136,120]
[343006754,1732272640734,-500.0,0.00090136,120]
[343006755,1732272640744,-500.0,0.00090136,120]
[343006756,1732272640753,-500.0,0.00090136,120]
[343006757,1732272640763,-587.11240191,0.00090136,120]
[343006758,1732272640772,-500.0,0.00090136,120]
[343006759,1732272640782,-500.0,0.00090136,120]
[343006760,1732272640791,-500.0,0.00090136,120]
[343006761,1732272640801,-525.84635953,0.00090136,120]
[343006762,1732272640810,-501.58800205,0.00090136,120]
[343006763,1732272640819,-500.0,0.00090136,120]
[343006764,1732272640829,-500.0,0.00090136,120]
[343006765,1732272640838,-500.0,0.00090136,120]
[343006766,1732272640847,-535.48122442,0.00090136,120]
[343006767,1732272640856,-508.19849515,0.00090136,120]
[343006768,1732272640866,-500.0,0.00090136,120]
[343006769,1732272640875,-211.90722482,0.00090136,10]
[343006770,1732272640887,-521.78358159,0.00090136,120]
[343006771,1732272640896,-503.31687203,0.00090136,120]
[343006772,1732272640906,-500.0,0.00090136,120]
[343006773,1732272640915,-500.0,0.00090136,120]
[343006774,1732272640924,-500.0,0.00090136,120]
[343006775,1732272640933,-500.0,0.00090136,120]
[343006776,1732272640943,-501.25907446,0.00090136,120]
[343006777,1732272640952,-500.0,0.00090136,120]
[343006778,1732272640962,-500.0,0.00090136,120]
[343006779,1732272640971,-500.0,0.00090136,120]
[343006780,1732272640980,-502.09253347,0.00090136,120]
[343006781,1732272640989,-500.0,0.00090136,120]
[343006782,1732272640998,-522.28984063,0.00090136,120]
[343006783,1732272641007,-500.0,0.00090136,120]
[343006784,1732272641017,-505.35822504,0.00090136,120]
[343006785,1732272641026,-500.0,0.00090136,120]
[343006786,1732272641035,-503.13701489,0.00090136,120]
[343006787,1732272641045,-500.0,0.00090136,120]
[343006788,1732272641054,-500.0,0.00090136,120]
[343006789,1732272641063,-514.08701237,0.00090136,120]
[343006790,1732272641073,-500.0,0.00090136,120]
[343006791,1732272641082,-501.4091194,0.00090136,120]
[343006792,1732272641091,-536.16445418,0.00090136,120]
[343006793,1732272641101,-500.0,0.00090136,120]
[343006794,1732272641110,-500.0,0.00090136,120]
[343006795,1732272641119,-501.28328149,0.00090136,120]
[343006796,1732272641128,-500.0,0.00090136,120]
[343006797,1732272641139,-501.78497778,0.00090136,120]
[343006798,1732272641151,-500.0,0.00090136,120]
[343006799,1732272641163,-500.0,0.00090136,120]
[343006800,1732272641172,-502.34367184,0.00090136,120]
[343006801,1732272641181,-348.04214769,0.00090136,120]
[343006802,1732272641190,-500.0,0.00090136,120]
[343006803,1732272641201,-500.0,0.00090136,120]
[343006804,1732272641211,-500.0,0.00090136,120]
[343006805,1732272641220,-501.43926682,0.00090136,120]
[343006806,1732272641230,-501.71855878,0.00090136,120]
[343006807,1732272641239,-500.0,0.00090136,120]
[343006808,1732272641249,-547.51864723,0.00090136,120]
[343006809,1732272641259,-501.86887696,0.00090136,120]
[343006810,1732272641268,-500.0,0.00090136,120]
[343006811,1732272641278,-500.0,0.00090136,120]
[343006812,1732272641289,-502.39812306,0.00090136,120]
[343006813,1732272641298,-500.4272868,0.00090136,120]
[343006814,1732272641307,-500.6290501,0.00090136,120]
[343006815,1732272641316,-500.0,0.00090136,120]
[343006816,1732272641325,-534.75200447,0.00090136,120]
[343006817,1732272641335,-501.61493729,0.00090136,120]
[343006818,1732272641344,-500.0,0.00090136,120]
[343006819,1732272641354,-502.24480222,0.00090136,120]
[343006820,1732272641363,-500.0,0.00090136,120]
[343006821,1732272641373,-500.0,0.00090136,120]
[343006822,1732272641382,-500.42537966,0.00090136,120]
[343006823,1732272641392,-501.6583639,0.00090136,120]
[343006824,1732272641402,-502.68877097,0.00090136,120]
[343006825,1732272641411,-500.77897049,0.00090136,120]
[343006826,1732272641421,-506.23656624,0.00090136,120]
[343006827,1732272641430,-634.50810739,0.00090136,120]
[343006828,1732272641440,-423.61269613,0.00090136,120]
[343006829,1732272641450,-500.98377763,0.00090136,120]
[343006830,1732272641459,-503.55835629,0.00090136,120]
[343006831,1732272641468,-537.22122881,0.00090136,120]
[343006832,1732272641478,-500.0,0.00090136,120]
[343006833,1732272641487,-226.6,0.00090142,120]
[343006834,1732272641497,-500.0,0.00090173,2]
[343006835,1732272641506,-207.33426798,0.0009031,61]
[343006836,1732272641516,-437.70500238,0.0009031,2]
[343006837,1732272641525,-500.0,0.0009041,120]
[343006838,1732272641535,-502.02808471,0.0009041,120]
[343006839,1732272641544,-500.0,0.0009041,120]
[343006840,1732272641554,-500.0,0.0009041,120]
[343006841,1732272641563,-502.56279196,0.0009041,120]
[343006842,1732272641573,-526.62244029,0.0009041,120]
[343006843,1732272641583,-500.0,0.0009041,120]
[343006844,1732272641593,-500.0,0.0009041,120]
[343006845,1732272641602,-500.0,0.0009041,120]
[343006846,1732272641611,-500.0,0.0009041,120]
[343006847,1732272641620,-503.65778431,0.0009041,120]
[343006848,1732272641630,-503.53493982,0.0009041,120]
[343006849,1732272641644,-500.0,0.0009041,120]
[343006850,1732272641654,-501.84334347,0.0009041,120]
[343006851,1732272641664,-510.29992235,0.0009041,120]
[343006852,1732272641673,-500.0,0.0009041,120]
[343006853,1732272641682,-225.84107852,0.0009041,120]
[343006854,1732272641692,-500.0,0.0009041,120]
[343006855,1732272641701,-500.0,0.0009041,120]
[343006856,1732272641711,-503.91227345,0.0009041,120]
[343006857,1732272641720,-500.0,0.0009041,120]
[343006858,1732272641729,-500.0,0.0009041,120]
[343006859,1732272641739,-500.0,0.0009041,120]
[343006860,1732272641747,-616.95630309,0.0009041,120]
[343006861,1732272641757,-500.0,0.0009041,120]
[343006862,1732272641766,-502.81803851,0.0009041,120]
[343006863,1732272641776,-550.126732,0.0009041,120]
[343006864,1732272641785,-504.07338153,0.0009041,120]
[343006865,1732272641795,-500.0,0.0009041,120]
[343006866,1732272641804,-501.60257978,0.0009041,120]
[343006867,1732272641814,-246.69806575,0.0009041,120]
[343006868,1732272641824,-502.52890748,0.0009041,120]
[343006869,1732272641834,-159.34891519,0.0009041,120]
[343006870,1732272641843,-505.47614839,0.0009041,120]
[343006871,1732272641853,-504.47214588,0.0009041,120]
[343006872,1732272641863,-500.0,0.0009041,120]
[343006873,1732272641872,-563.7178079,0.0009041,120]
[343006874,1732272641883,-500.0,0.0009041,120]
[343006875,1732272641893,-500.0,0.0009041,120]
[343006876,1732272641902,-500.0,0.0009041,120]
[343006877,1732272641913,-596.780638,0.0009041,120]
[343006878,1732272641923,-500.0,0.0009041,120]
[343006879,1732272641932,-502.58376319,0.0009041,120]
[343006880,1732272641941,-609.36579541,0.0009041,120]
[343006881,1732272641951,-504.96508329,0.0009041,120]
[343006882,1732272641961,-504.80595928,0.0009041,120]
[343006883,1732272642125,-500.0,0.0009041,120]
[343006884,1732272642137,-502.34738941,0.0009041,120]
[343006885,1732272642149,-506.37573002,0.0009041,120]
[343006886,1732272642159,-498.80576303,0.0009041,120]
[343006887,1732272642168,-501.1740699,0.0009041,14]
[343006888,1732272642177,-500.0,0.0009041,120]
[343006889,1732272642188,-504.92977309,0.0009041,120]
[343006890,1732272642197,-500.0,0.0009041,120]
[343006891,1732272642207,-503.81816152,0.0009041,120]
[343006892,1732272642219,-500.0,0.0009041,120]
[343006893,1732272642228,-519.70216327,0.0009041,120]
[343006894,1732272642238,-500.0,0.0009041,120]
[343006895,1732272642247,-500.0,0.0009041,120]
[343006896,1732272642258,-500.0,0.0009041,120]
[343006897,1732272642267,-500.0,0.0009041,120]
[343006898,1732272642276,-510.27201946,0.0009041,120]
[343006899,1732272642285,-500.0,0.0009041,120]
[343006900,1732272642295,-500.0,0.0009041,120]
[343006901,1732272642304,-528.50487506,0.0009041,120]
[343006902,1732272642313,-467.89962483,0.0009041,120]
[343006903,1732272642322,-500.0,0.0009041,120]
[343006904,1732272642331,-500.0,0.0009041,120]
[343006905,1732272642341,-500.0,0.0009041,120]
[343006906,1732272642351,-500.0,0.0009041,120]
[343006907,1732272642361,-504.75203431,0.0009041,120]
[343006908,1732272642371,-500.0,0.0009041,120]
[343006909,1732272642380,-500.0,0.0009041,120]
[343006910,1732272642391,-500.0,0.0009041,120]
[343006911,1732272642400,-500.0,0.0009041,120]
[343006912,1732272642410,-500.0,0.0009041,120]
[343006913,1732272642420,-500.0,0.0009041,120]
[343006914,1732272642430,-500.0,0.0009041,120]
[343006915,1732272642440,-500.0,0.0009041,120]
[343006916,1732272642450,-500.0,0.0009041,120]
[343006917,1732272642460,-500.0,0.0009041,120]
[343006918,1732272642470,-500.0,0.0009041,120]
[343006919,1732272642480,-500.0,0.0009041,120]
[343006920,1732272642491,-548.82478087,0.0009041,120]
[343006921,1732272642502,-500.0,0.0009041,120]
[343006922,1732272642514,-274.05047136,0.0009041,120]
[343006923,1732272642525,-500.0,0.0009041,120]
[343006924,1732272642535,-500.0,0.0009041,120]
[343006925,1732272642546,-500.0,0.0009041,120]
[343006926,1732272642555,-377.22759809,0.0009041,120]
[343006927,1732272642565,-500.0,0.0009041,120]
[343006928,1732272642574,-500.0,0.0009041,120]
[343006929,1732272642584,-514.93588491,0.0009041,120]
[343006930,1732272642594,-501.49684332,0.0009041,120]
[343006931,1732272642603,-500.0,0.0009041,120]
[343006932,1732272642612,-500.0,0.0009041,120]
[343006933,1732272642622,-379.23106796,0.0009041,120]
[343006934,1732272642631,-575.46560964,0.0009041,120]
[343006935,1732272642641,-500.0,0.0009041,120]
[343006936,1732272642650,-500.0,0.0009041,120]
[343006937,1732272642659,-500.0,0.0009041,120]
[343006938,1732272642669,-500.0,0.0009041,120]
[343006939,1732272642678,-500.0,0.0009041,120]
[343006940,1732272642687,-500.0,0.0009041,120]
[343006941,1732272642696,-500.0,0.0009041,120]
[343006942,1732272642705,-500.0,0.0009041,120]
[343006943,1732272642715,-500.0,0.0009041,120]
[343006944,1732272642725,-500.0,0.0009041,120]
[343006945,1732272642734,-626.91642508,0.0009041,120]
[343006946,1732272642743,-168.0,0.0009041,120]
[343006947,1732272642753,-501.6483057,0.0009041,120]
[343006948,1732272642763,-504.0248002,0.0009041,120]
[343006949,1732272642773,-500.0,0.0009041,120]
[343006950,1732272642782,-500.0,0.0009041,120]
[343006951,1732272642792,-500.0,0.0009041,120]
[343006953,1732272642802,-500.0,0.0009041,120]
[343006954,1732272642811,-500.0,0.0009041,120]
[343006956,1732272642820,-500.0,0.0009041,120]
[343006957,1732272642829,-500.0,0.0009041,120]
[343006958,1732272642838,-534.0615338,0.0009041,120]
[343006959,1732272642847,-500.0,0.0009041,120]
[343006960,1732272642857,-500.0,0.0009041,120]
[343006961,1732272642866,-500.0,0.0009041,120]
[343006962,1732272642875,-500.0,0.0009041,120]
[343006963,1732272642886,-505.6387476,0.0009041,120]
[343006964,1732272642896,-505.98863368,0.0009041,120]
[343006965,1732272642906,-500.0,0.0009041,120]
[343006966,1732272642915,-500.0,0.0009041,120]
[343006967,1732272642924,-500.0,0.0009041,120]
[343006968,1732272642933,-500.0,0.0009041,120]
[343006969,1732272642943,-500.0,0.0009041,120]
[343006970,1732272642952,-390.77644276,0.0009041,120]
[343006971,1732272642961,-518.46263677,0.0009041,120]
[343006972,1732272642971,-500.0,0.0009041,120]
[343006975,1732272642980,-514.90481797,0.0009041,120]
[343006976,1732272642990,-500.0,0.0009041,120]
[343006977,1732272642999,-500.0,0.0009041,120]
[343006978,1732272643009,-500.0,0.0009041,120]
[343006979,1732272643018,-500.0,0.0009041,120]
[343006980,1732272643027,-500.0,0.0009041,120]
[343006981,1732272643037,-500.0,0.0009041,120]
[343006982,1732272643047,-500.14001262,0.0009041,120]
[343006983,1732272643056,-500.0,0.0009041,120]
[343006984,1732272643065,-500.0,0.0009041,120]
[343006985,1732272643074,-305.73942662,0.0009041,120]
[343006986,1732272643083,-500.0,0.0009041,120]
[343006987,1732272643092,-500.0,0.0009041,120]
[343006988,1732272643101,-625.08667702,0.0009041,120]
[343006989,1732272643110,-500.0,0.0009041,120]
[343006990,1732272643119,-500.0,0.0009041,120]
[343006991,1732272643129,-501.81799323,0.0009041,120]
[343006992,1732272643140,-500.0,0.0009041,120]
[343006993,1732272643151,-537.18045045,0.0009041,120]
[343006994,1732272643162,-501.24837892,0.0009041,120]
[343006995,1732272643171,-504.29450678,0.0009041,120]
[343006996,1732272643180,-503.96827071,0.0009041,120]
[343006997,1732272643190,-500.73358678,0.0009041,120]
[343006998,1732272643199,-500.0,0.0009041,120]
[343006999,1732272643208,-501.93991141,0.0009041,120]
[343007000,1732272643217,-502.24663378,0.0009041,120]
[343007001,1732272643227,-500.0,0.0009041,120]
[343007002,1732272643237,-502.91064098,0.0009041,120]
[343007003,1732272643248,-500.0,0.0009041,120]
[343007004,1732272643258,-502.62450449,0.0009041,120]
[343007005,1732272643267,-502.24856653,0.0009041,120]
[343007006,1732272643277,-563.29975677,0.0009041,120]
[343007007,1732272643287,-501.0722523,0.0009041,120]
[343007008,1732272643296,-500.0,0.0009041,120]
[343007009,1732272643305,-530.73929588,0.0009041,120]
[343007010,1732272643314,-501.67997191,0.0009041,120]
[343007011,1732272643324,-500.0,0.0009041,120]
[343007012,1732272643333,-500.0,0.0009041,120]
[343007013,1732272643343,-500.0,0.0009041,120]
[343007014,1732272643352,-408.51,0.0009041,120]
[343007015,1732272643362,-503.32667491,0.0009041,120]
[343007016,1732272643371,-500.48727087,0.0009041,120]
[343007017,1732272643382,-500.0,0.0009041,120]
[343007018,1732272643391,-548.66597698,0.0009041,120]
[343007019,1732272643401,-500.0,0.0009041,120]
[343007020,1732272643411,-500.35401237,0.0009041,120]
[343007021,1732272643420,-505.03098376,0.0009041,120]
[343007022,1732272643430,-531.71138071,0.0009041,120]
[343007023,1732272643439,-500.0,0.0009041,120]
[343007024,1732272643448,-500.0,0.0009041,120]
[343007025,1732272643458,-515.49397384,0.0009041,120]
[343007026,1732272643467,-500.0,0.0009041,120]
[343007027,1732272643475,-500.0,0.0009041,120]
[343007028,1732272643485,-500.4659284,0.0009041,120]
[343007029,1732272643494,-500.0,0.0009041,120]
[343007030,1732272643504,-500.0,0.0009041,120]
[343007031,1732272643513,-501.05679605,0.0009041,120]
[343007032,1732272643522,-500.0,0.0009041,120]
[343007033,1732272643532,-528.72389852,0.0009041,120]
[343007034,1732272643541,-505.93187998,0.0009041,120]
[343007035,1732272643551,-502.56459039,0.0009041,120]
[343007036,1732272643560,-500.0,0.0009041,120]
[343007037,1732272643570,-500.0,0.0009041,120]
[343007038,1732272643579,-500.0,0.0009041,120]
[343007039,1732272643589,-500.0,0.0009041,120]
[343007040,1732272643598,-500.0,0.0009041,120]
[343007041,1732272643607,-500.0,0.0009041,120]
[343007042,1732272643617,-500.0,0.0009041,120]
[343007043,1732272643628,-500.0,0.0009041,120]
[343007044,1732272643639,-500.0,0.0009041,120]
[343007045,1732272643648,-502.22967639,0.0009041,120]
[343007046,1732272643658,-503.82059748,0.0009041,120]
[343007047,1732272643667,-507.27415883,0.0009041,120]
[343007049,1732272643677,-327.20880656,0.0009041,120]
[343007051,1732272643685,-500.0,0.0009041,120]
[343007053,1732272643695,-506.44275312,0.0009041,120]
[343007054,1732272643703,-500.0,0.0009041,120]
[343007055,1732272643713,-500.0,0.0009041,120]
[343007056,1732272643722,-501.17312576,0.0009041,120]
[343007057,1732272643733,-583.94645257,0.0009041,120]
[343007058,1732272643745,-505.34034831,0.0009041,120]
[343007059,1732272643756,-504.1670535,0.0009041,120]
[343007060,1732272643768,-500.0,0.0009041,120]
[343007061,1732272643781,-502.80147471,0.0009041,120]
[343007062,1732272643792,-500.0,0.0009041,120]
[343007063,1732272643804,-507.00876873,0.0009041,120]
[343007064,1732272643815,-500.0,0.0009041,120]
[343007065,1732272643825,-500.0,0.0009041,60]
[343007066,1732272643836,-500.0,0.0009041,120]
[343007067,1732272643847,-500.0,0.0009041,120]
[343007068,1732272643858,-500.0,0.0009041,120]
[343007069,1732272643870,-500.0,0.0009041,120]
[343007070,1732272643882,-500.0,0.0009041,120]
[343007071,1732272643893,-500.0,0.0009041,120]
[343007072,1732272643905,-500.0,0.0009041,120]
[343007073,1732272643916,-505.65609292,0.0009041,120]
[343007074,1732272643929,-500.0,0.0009041,120]
[343007075,1732272643940,-320.76903945,0.0009041,120]
[343007076,1732272643952,-500.0,0.0009041,120]
[343007077,1732272643963,-506.00648582,0.0009041,120]
[343007078,1732272643973,-501.0942527,0.0009041,120]
[343007079,1732272643984,-512.79688894,0.0009041,120]
[343007080,1732272643995,-500.0,0.0009041,120]
[343007081,1732272644005,-500.0,0.0009041,120]
[343007082,1732272644015,-500.35402305,0.0009041,120]
[343007083,1732272644025,-508.81019671,0.0009041,120]
[343007084,1732272644036,-500.0,0.0009041,120]
[343007085,1732272644047,-500.0,0.0009041,120]
[343007086,1732272644059,-500.0,0.0009041,120]
[343007087,1732272644070,-500.0,0.0009041,120]
[343007088,1732272644081,-500.0,0.0009041,120]
[343007089,1732272644092,-215.96106162,0.0009041,120]
[343007090,1732272644103,-500.0,0.0009041,120]
[343007091,1732272644116,-500.92782931,0.0009041,120]
[343007092,1732272644127,-385.84434376,0.0009041,120]
[343007093,1732272644139,-506.97102209,0.0009041,120]
[343007094,1732272644157,-501.18823099,0.0009041,120]
[343007095,1732272644168,-500.0,0.0009041,120]
[343007096,1732272644180,-500.0,0.0009041,120]
[343007097,1732272644191,-500.0,0.0009041,120]
[343007098,1732272644202,-520.19896465,0.0009041,120]
[343007099,1732272644212,-549.30064399,0.0009041,120]
[343007100,1732272644225,-500.0,0.0009041,120]
[343007101,1732272644236,-500.0,0.0009041,120]
[343007102,1732272644246,-501.66186098,0.0009041,120]
[343007103,1732272644257,-500.0,0.0009041,120]
[343007104,1732272644267,-502.45700013,0.0009041,120]
[343007105,1732272644278,-212.66407876,0.0009041,120]
[343007106,1732272644288,-500.0,0.0009041,120]
[343007107,1732272644299,-500.0,0.0009041,120]
[343007108,1732272644309,-499.97102445,0.0009041,120]
[343007109,1732272644321,-500.0,0.0009041,120]
[343007110,1732272644331,-500.0,0.0009041,120]
[343007111,1732272644342,-505.28597319,0.0009041,120]
[343007112,1732272644353,-500.0,0.0009041,120]
[343007113,1732272644365,-501.18102023,0.0009041,120]
[343007114,1732272644375,-500.0,0.0009041,120]
[343007115,1732272644387,-500.0,0.0009041,120]
[343007116,1732272644398,-502.16841728,0.0009041,120]
[343007117,1732272644409,-500.0,0.0009041,120]
[343007118,1732272644419,-500.0,0.0009041,120]
[343007119,1732272644429,-500.42737017,0.0009041,120]
[343007120,1732272644439,-500.0,0.0009041,120]
[343007121,1732272644450,-501.98014259,0.0009041,120]
[343007122,1732272644460,-502.56057318,0.0009041,120]
[343007123,1732272644471,-500.0,0.0009041,120]
[343007124,1732272644484,-501.56800779,0.0009041,120]
[343007125,1732272644497,-501.59235744,0.0009041,120]
[343007126,1732272644507,-500.0,0.0009041,120]
[343007127,1732272644517,-500.0,0.0009041,120]
[343007128,1732272644527,-500.84618321,0.0009041,120]
[343007129,1732272644537,-508.51957542,0.0009041,120]
[343007130,1732272644547,-500.0,0.0009041,120]
[343007131,1732272644558,-500.0,0.0009041,120]
[343007132,1732272644569,-500.0,0.0009041,120]
[343007133,1732272644580,-518.40187039,0.0009041,120]
[343007134,1732272644591,-500.0,0.0009041,120]
[343007135,1732272644602,-500.0,0.0009041,120]
[343007136,1732272644614,-501.45761554,0.0009041,120]
[343007137,1732272644624,-500.0,0.0009041,120]
[343007138,1732272644635,-578.6121257,0.0009041,120]
[343007139,1732272644645,-507.7452401,0.0009041,120]
[343007140,1732272644655,-500.0,0.0009041,120]
[343007141,1732272644665,-548.1689054,0.0009041,120]
[343007142,1732272644675,-503.32986559,0.0009041,120]
[343007143,1732272644685,-500.0,0.0009041,120]
[343007144,1732272644695,-500.0,0.0009041,120]
[343007145,1732272644705,-500.0,0.0009041,120]
[343007146,1732272644715,-543.08966139,0.0009041,120]
[343007147,1732272644726,-500.87305661,0.0009041,120]
[343007148,1732272644736,-500.0,0.0009041,120]
[343007149,1732272644746,-500.0,0.0009041,120]
[343007150,1732272644756,-500.0,0.0009041,120]
[343007151,1732272644766,-500.0,0.0009041,120]
[343007152,1732272644776,-509.16317945,0.0009041,120]
[343007153,1732272644786,-500.0,0.0009041,120]
[343007154,1732272644796,-505.51653192,0.0009041,120]
[343007155,1732272644807,-500.62472791,0.0009041,120]
[343007156,1732272644816,-500.0,0.0009041,120]
[343007157,1732272644827,-267.78281616,0.0009041,120]
[343007158,1732272644837,-500.0,0.0009041,120]
[343007159,1732272644847,-500.0,0.0009041,120]
[343007160,1732272644857,-517.04903469,0.0009041,120]